[Event "Early-Titled-Tuesday-Blitz-April-02-2024"]
[Site "Chess.com"]
[Date "2024.04.02"]
[Round "6"]
[White "Vahe_Danielyan"]
[Black "lilleper1"]
[Result "1/2-1/2"]
[WhiteElo "2632"]
[BlackElo "2913"]
[TimeControl "180+1"]
[EndTime "9:08:42 PDT"]
[Termination "Game drawn by repetition"]

1. e4 {[%clk 0:03:00.9]} 1... c5 {[%clk 0:02:58.8]} 2. Nc3 {[%clk 0:03:01]} 2...
d6 {[%clk 0:02:57.9]} 3. d4 {[%clk 0:03:00.9]} 3... cxd4 {[%clk 0:02:58]} 4.
Qxd4 {[%clk 0:03:01.8]} 4... Nc6 {[%clk 0:02:55.5]} 5. Qd2 {[%clk 0:03:01.6]}
5... Nf6 {[%clk 0:02:55.8]} 6. b3 {[%clk 0:03:01.5]} 6... e6 {[%clk 0:02:56.4]}
7. Bb2 {[%clk 0:03:01.4]} 7... d5 {[%clk 0:02:57]} 8. exd5 {[%clk 0:03:02.1]}
8... exd5 {[%clk 0:02:57.9]} 9. O-O-O {[%clk 0:03:02.3]} 9... Be6 {[%clk
0:02:57.3]} 10. Nf3 {[%clk 0:02:57.6]} 10... Qa5 {[%clk 0:02:56.9]} 11. Nb5
{[%clk 0:02:51.3]} 11... Qxd2+ {[%clk 0:02:50]} 12. Rxd2 {[%clk 0:02:45.3]}
12... O-O-O {[%clk 0:02:48.2]} 13. Nfd4 {[%clk 0:02:24.1]} 13... Ne4 {[%clk
0:02:34.6]} 14. Re2 {[%clk 0:02:20.3]} 14... a6 {[%clk 0:02:22.6]} 15. Nxc6
{[%clk 0:02:14.8]} 15... bxc6 {[%clk 0:02:23.5]} 16. Nd4 {[%clk 0:02:15.1]}
16... Bd7 {[%clk 0:02:23.3]} 17. f3 {[%clk 0:02:01.5]} 17... Nf6 {[%clk
0:02:21.4]} 18. Rd2 {[%clk 0:01:59.8]} 18... Kb7 {[%clk 0:02:20.5]} 19. Bd3
{[%clk 0:01:49.5]} 19... Bb4 {[%clk 0:02:14.6]} 20. c3 {[%clk 0:01:44.1]} 20...
Bd6 {[%clk 0:02:13.2]} 21. g3 {[%clk 0:01:36.3]} 21... Rhe8 {[%clk 0:02:09.3]}
22. Rhd1 {[%clk 0:01:05.9]} 22... Re3 {[%clk 0:02:04.1]} 23. b4 {[%clk
0:01:03.3]} 23... Rde8 {[%clk 0:02:00.2]} 24. Rf1 {[%clk 0:00:51.4]} 24... h5
{[%clk 0:01:59.7]} 25. Nb3 {[%clk 0:00:43.8]} 25... Bh3 {[%clk 0:01:53.3]} 26.
Rff2 {[%clk 0:00:42.1]} 26... Re1+ {[%clk 0:01:51.7]} 27. Kc2 {[%clk 0:00:40.4]}
27... Nd7 {[%clk 0:01:48.4]} 28. Rde2 {[%clk 0:00:38.9]} 28... R8xe2+ {[%clk
0:01:25.1]} 29. Rxe2 {[%clk 0:00:39.8]} 29... Rh1 {[%clk 0:01:24.6]} 30. a3
{[%clk 0:00:37.5]} 30... Bf1 {[%clk 0:01:08.1]} 31. Na5+ {[%clk 0:00:26.2]}
31... Kb6 {[%clk 0:01:02.5]} 32. Rf2 {[%clk 0:00:26.1]} 32... Bxd3+ {[%clk
0:01:02]} 33. Kxd3 {[%clk 0:00:27]} 33... Ne5+ {[%clk 0:01:01.4]} 34. Kc2 {[%clk
0:00:26]} 34... Bc7 {[%clk 0:00:42.8]} 35. c4 {[%clk 0:00:22.2]} 35... Nxc4
{[%clk 0:00:35.3]} 36. Nxc4+ {[%clk 0:00:22.6]} 36... dxc4 {[%clk 0:00:36.2]}
37. Bxg7 {[%clk 0:00:23]} 37... Kb5 {[%clk 0:00:30.7]} 38. Re2 {[%clk
0:00:20.6]} 38... Bd6 {[%clk 0:00:28.5]} 39. Be5 {[%clk 0:00:17.8]} 39... Bf8
{[%clk 0:00:26.1]} 40. Bb2 {[%clk 0:00:14.2]} 40... c5 {[%clk 0:00:25.8]} 41.
bxc5 {[%clk 0:00:10.2]} 41... Bxc5 {[%clk 0:00:26.7]} 42. h4 {[%clk 0:00:08.2]}
42... Rg1 {[%clk 0:00:26.1]} 43. g4 {[%clk 0:00:07.9]} 43... hxg4 {[%clk
0:00:25.8]} 44. fxg4 {[%clk 0:00:08.8]} 44... Rxg4 {[%clk 0:00:25.3]} 45. Rh2
{[%clk 0:00:09.5]} 45... Bd6 {[%clk 0:00:24.1]} 46. Rh1 {[%clk 0:00:09.2]} 46...
Rg2+ {[%clk 0:00:24.2]} 47. Kb1 {[%clk 0:00:09.2]} 47... Ka4 {[%clk 0:00:24.3]}
48. h5 {[%clk 0:00:09.2]} 48... Kb3 {[%clk 0:00:24.1]} 49. Rh3+ {[%clk
0:00:09.3]} 49... Bg3 {[%clk 0:00:24.3]} 50. h6 {[%clk 0:00:04.4]} 50... Rxb2+
{[%clk 0:00:22.8]} 51. Kc1 {[%clk 0:00:03.4]} 51... Rh2 {[%clk 0:00:19.8]} 52.
Rxg3+ {[%clk 0:00:02.7]} 52... c3 {[%clk 0:00:20.3]} 53. Kd1 {[%clk 0:00:02.8]}
53... Rh1+ {[%clk 0:00:19.6]} 54. Ke2 {[%clk 0:00:03.3]} 54... Rxh6 {[%clk
0:00:20.5]} 55. Rf3 {[%clk 0:00:03.6]} 55... Re6+ {[%clk 0:00:20.6]} 56. Kd3
{[%clk 0:00:03.9]} 56... Rd6+ {[%clk 0:00:20.5]} 57. Ke2 {[%clk 0:00:04.1]}
57... Kb2 {[%clk 0:00:21.1]} 58. Rxf7 {[%clk 0:00:04.4]} 58... c2 {[%clk
0:00:21.3]} 59. Rb7+ {[%clk 0:00:05.3]} 59... Kxa3 {[%clk 0:00:21.1]} 60. Rc7
{[%clk 0:00:06.2]} 60... Kb2 {[%clk 0:00:21.3]} 61. Rb7+ {[%clk 0:00:06.7]}
61... Ka2 {[%clk 0:00:19.8]} 62. Rc7 {[%clk 0:00:07.6]} 62... Kb3 {[%clk
0:00:20.1]} 63. Rb7+ {[%clk 0:00:07.6]} 63... Ka3 {[%clk 0:00:19.7]} 64. Rc7
{[%clk 0:00:08.5]} 64... Kb3 {[%clk 0:00:17.6]} 65. Rb7+ {[%clk 0:00:09.1]}
65... Ka4 {[%clk 0:00:17.8]} 66. Rc7 {[%clk 0:00:10]} 66... Kb4 {[%clk
0:00:15.8]} 67. Rxc2 {[%clk 0:00:09.8]} 67... a5 {[%clk 0:00:16.2]} 68. Rc8
{[%clk 0:00:08.6]} 68... a4 {[%clk 0:00:16.4]} 69. Rb8+ {[%clk 0:00:08.2]} 69...
Kc3 {[%clk 0:00:16.8]} 70. Rc8+ {[%clk 0:00:08.7]} 70... Kb2 {[%clk 0:00:17.3]}
71. Rb8+ {[%clk 0:00:09.2]} 71... Ka2 {[%clk 0:00:17.8]} 72. Rb7 {[%clk
0:00:09.6]} 72... a3 {[%clk 0:00:18.2]} 73. Rb8 {[%clk 0:00:10.3]} 73... Ka1
{[%clk 0:00:18.4]} 74. Rb7 {[%clk 0:00:11]} 74... a2 {[%clk 0:00:18.9]} 75. Rb8
{[%clk 0:00:11.6]} 75... Rh6 {[%clk 0:00:17.1]} 76. Kd2 {[%clk 0:00:11.1]} 76...
Rh1 {[%clk 0:00:18]} 77. Kc2 {[%clk 0:00:11]} 77... Rb1 {[%clk 0:00:17.5]} 78.
Rh8 {[%clk 0:00:11.6]} 78... Rg1 {[%clk 0:00:15.4]} 79. Rf8 {[%clk 0:00:11.2]}
79... Rg2+ {[%clk 0:00:15.6]} 80. Kc1 {[%clk 0:00:11.5]} 80... Rg7 {[%clk
0:00:15.6]} 81. Rb8 {[%clk 0:00:09.3]} 81... Rc7+ {[%clk 0:00:15.1]} 82. Kd2
{[%clk 0:00:09.9]} 82... Rd7+ {[%clk 0:00:15.2]} 83. Kc2 {[%clk 0:00:10.1]}
83... Rc7+ {[%clk 0:00:15.7]} 84. Kd2 {[%clk 0:00:10.6]} 84... Rh7 {[%clk
0:00:16.6]} 85. Kc2 {[%clk 0:00:09.5]} 85... Rh2+ {[%clk 0:00:16.3]} 86. Kc1
{[%clk 0:00:09.1]} 86... Rh1+ {[%clk 0:00:16.7]} 87. Kc2 {[%clk 0:00:09.7]}
87... Rb1 {[%clk 0:00:17.2]} 88. Rh8 {[%clk 0:00:10.4]} 88... Rb2+ {[%clk
0:00:17.5]} 89. Kc1 {[%clk 0:00:11.1]} 89... Rb4 {[%clk 0:00:17.4]} 90. Rc8
{[%clk 0:00:09.6]} 90... Rb5 {[%clk 0:00:17.4]} 91. Rc7 {[%clk 0:00:09.5]} 91...
Rh5 {[%clk 0:00:17.1]} 92. Rc8 {[%clk 0:00:08.4]} 92... Rh2 {[%clk 0:00:16.1]}
93. Rb8 {[%clk 0:00:08.1]} 93... Rh1+ {[%clk 0:00:15.6]} 94. Kc2 {[%clk
0:00:08.8]} 1/2-1/2

[Event "Early-Titled-Tuesday-Blitz-April-02-2024"]
[Site "Chess.com"]
[Date "2024.04.02"]
[Round "6"]
[White "Barbix1"]
[Black "Kratos031"]
[Result "0-1"]
[WhiteElo "2309"]
[BlackElo "2488"]
[TimeControl "180+1"]
[EndTime "9:09:09 PDT"]
[Termination "Kratos031 won on time"]

1. d4 {[%clk 0:02:57.2]} 1... Nf6 {[%clk 0:02:59.7]} 2. c4 {[%clk 0:02:55.5]}
2... e6 {[%clk 0:03:00]} 3. Nf3 {[%clk 0:02:54.8]} 3... Bb4+ {[%clk 0:03:00.5]}
4. Bd2 {[%clk 0:02:52.1]} 4... a5 {[%clk 0:03:01.1]} 5. g3 {[%clk 0:02:48.5]}
5... O-O {[%clk 0:03:00.3]} 6. Bg2 {[%clk 0:02:48.2]} 6... d5 {[%clk 0:03:00.9]}
7. Qc1 {[%clk 0:02:29.3]} 7... b6 {[%clk 0:02:52.3]} 8. O-O {[%clk 0:02:16]}
8... Ne4 {[%clk 0:02:21.6]} 9. a3 {[%clk 0:02:04.2]} 9... Nxd2 {[%clk
0:02:14.9]} 10. Nbxd2 {[%clk 0:02:00.1]} 10... Be7 {[%clk 0:02:12.7]} 11. cxd5
{[%clk 0:01:56.1]} 11... exd5 {[%clk 0:02:11.6]} 12. Ne5 {[%clk 0:01:56.1]}
12... Bb7 {[%clk 0:02:09.7]} 13. Qc2 {[%clk 0:01:42.2]} 13... c5 {[%clk
0:02:07.1]} 14. dxc5 {[%clk 0:01:36]} 14... bxc5 {[%clk 0:02:04.3]} 15. Rfd1
{[%clk 0:01:33.5]} 15... Nd7 {[%clk 0:01:59.5]} 16. Nxd7 {[%clk 0:01:23.3]}
16... Qxd7 {[%clk 0:02:00.4]} 17. Nc4 {[%clk 0:01:23.3]} 17... Qe6 {[%clk
0:01:28.5]} 18. Ne3 {[%clk 0:01:18.2]} 18... Rfd8 {[%clk 0:01:25.3]} 19. Rac1
{[%clk 0:01:06.8]} 19... Rab8 {[%clk 0:01:15.5]} 20. Nf5 {[%clk 0:00:22.9]}
20... Bf8 {[%clk 0:01:13.6]} 21. Rd2 {[%clk 0:00:17.2]} 21... d4 {[%clk
0:01:06.7]} 22. Nh4 {[%clk 0:00:12.2]} 22... Bxg2 {[%clk 0:01:01.6]} 23. Nxg2
{[%clk 0:00:13.1]} 23... Qb3 {[%clk 0:00:55.5]} 24. Nf4 {[%clk 0:00:12.4]} 24...
g6 {[%clk 0:00:51.6]} 25. Nd3 {[%clk 0:00:11]} 25... Bh6 {[%clk 0:00:43]} 26. f4
{[%clk 0:00:05]} 26... Qe6 {[%clk 0:00:24.9]} 27. Nf2 {[%clk 0:00:01.7]} 27...
Rbc8 {[%clk 0:00:21.7]} 28. Qe4 {[%clk 0:00:01.8]} 28... Qb6 {[%clk 0:00:20.1]}
29. Rdc2 {[%clk 0:00:01.9]} 29... Bf8 {[%clk 0:00:17.9]} 30. Nd3 {[%clk
0:00:02]} 30... Re8 {[%clk 0:00:14.4]} 31. Qf3 {[%clk 0:00:02.1]} 31... Rcd8
{[%clk 0:00:14.8]} 32. Qf2 {[%clk 0:00:02.5]} 32... Re3 {[%clk 0:00:14.9]} 33.
Nxc5 {[%clk 0:00:02.5]} 33... Rde8 {[%clk 0:00:14.4]} 34. Nd3 {[%clk 0:00:01.8]}
34... Qb5 {[%clk 0:00:14.3]} 35. Kf1 {[%clk 0:00:02.1]} 35... a4 {[%clk
0:00:14.4]} 36. Nb4 {[%clk 0:00:02]} 36... Qb7 {[%clk 0:00:14.2]} 37. Nd3 {[%clk
0:00:02.1]} 37... Qh1+ {[%clk 0:00:14.3]} 38. Qg1 {[%clk 0:00:02.8]} 38... Qe4
{[%clk 0:00:15]} 39. Qg2 {[%clk 0:00:02.5]} 39... Qf5 {[%clk 0:00:14.1]} 40. Qf2
{[%clk 0:00:02.6]} 40... Qh3+ {[%clk 0:00:13.9]} 41. Kg1 {[%clk 0:00:02.2]}
41... Qh5 {[%clk 0:00:14.8]} 42. Kf1 {[%clk 0:00:01.8]} 42... h6 {[%clk
0:00:14.7]} 43. h4 {[%clk 0:00:02.1]} 43... Qg4 {[%clk 0:00:14.7]} 44. Kg1
{[%clk 0:00:02.4]} 44... Rxg3+ {[%clk 0:00:15.1]} 45. Kf1 {[%clk 0:00:02.3]}
45... Rh3 {[%clk 0:00:15.6]} 46. Ke1 {[%clk 0:00:01.1]} 46... Rh1+ {[%clk
0:00:15.7]} 47. Kd2 {[%clk 0:00:01.7]} 47... Rxh4 {[%clk 0:00:16.2]} 48. Qf3
{[%clk 0:00:01.4]} 48... Qxf3 {[%clk 0:00:15.7]} 49. exf3 {[%clk 0:00:02.3]}
49... Rh2+ {[%clk 0:00:16.2]} 50. Kd1 {[%clk 0:00:02.6]} 50... Re3 {[%clk
0:00:16.5]} 51. Rxh2 {[%clk 0:00:01.6]} 51... Rxd3+ {[%clk 0:00:17.2]} 52. Rd2
{[%clk 0:00:01.9]} 52... Rxf3 {[%clk 0:00:17.7]} 53. Rxd4 {[%clk 0:00:01.1]}
53... Bg7 {[%clk 0:00:18.1]} 54. Rd8+ {[%clk 0:00:01.7]} 54... Kh7 {[%clk
0:00:18.5]} 55. Rcc8 {[%clk 0:00:02.2]} 55... h5 {[%clk 0:00:18.2]} 56. Rd7
{[%clk 0:00:02.5]} 56... Rxf4 {[%clk 0:00:18.5]} 57. Ra8 {[%clk 0:00:02.7]}
57... h4 {[%clk 0:00:18.1]} 58. Rda7 {[%clk 0:00:02.3]} 58... g5 {[%clk
0:00:14.6]} 59. Rxa4 {[%clk 0:00:03.2]} 59... Rf1+ {[%clk 0:00:15.2]} 60. Ke2
{[%clk 0:00:02.5]} 60... Rb1 {[%clk 0:00:15.8]} 61. b4 {[%clk 0:00:01.8]} 61...
Kg6 {[%clk 0:00:16.2]} 62. R4a6+ {[%clk 0:00:01.4]} 62... f6 {[%clk 0:00:15.7]}
63. Rg8 {[%clk 0:00:02]} 63... Kf7 {[%clk 0:00:14.2]} 64. Rc8 {[%clk 0:00:01.8]}
64... h3 {[%clk 0:00:13.6]} 65. Ra7+ {[%clk 0:00:01.8]} 65... Kg6 {[%clk
0:00:12.9]} 66. Rg8 {[%clk 0:00:02.1]} 66... h2 {[%clk 0:00:13.3]} 67. Rgxg7+
{[%clk 0:00:02.3]} 67... Kf5 {[%clk 0:00:14]} 68. Rh7 {[%clk 0:00:02.9]} 68...
h1=Q {[%clk 0:00:14.6]} 69. Rxh1 {[%clk 0:00:03.2]} 69... Rxh1 {[%clk
0:00:15.5]} 70. a4 {[%clk 0:00:03.6]} 70... Ra1 {[%clk 0:00:16]} 71. a5 {[%clk
0:00:03.9]} 71... g4 {[%clk 0:00:16.7]} 72. Rg7 {[%clk 0:00:03.7]} 72... Kf4
{[%clk 0:00:16.5]} 73. Kf2 {[%clk 0:00:03.6]} 73... Ra2+ {[%clk 0:00:16.2]} 74.
Kf1 {[%clk 0:00:02.3]} 74... Kf3 {[%clk 0:00:16]} 75. Ke1 {[%clk 0:00:02.5]}
75... f5 {[%clk 0:00:16.5]} 76. b5 {[%clk 0:00:02.1]} 76... Rxa5 {[%clk
0:00:16]} 77. b6 {[%clk 0:00:02.8]} 77... Rb5 {[%clk 0:00:16.6]} 78. b7 {[%clk
0:00:03.1]} 78... f4 {[%clk 0:00:17.1]} 79. Kd2 {[%clk 0:00:03.5]} 79... g3
{[%clk 0:00:17.4]} 80. Kc3 {[%clk 0:00:04.2]} 80... Kf2 {[%clk 0:00:17.6]} 81.
Kc4 {[%clk 0:00:04.8]} 81... Rb1 {[%clk 0:00:18.2]} 82. Rg5 {[%clk 0:00:05.2]}
82... f3 {[%clk 0:00:18.2]} 83. Rb5 {[%clk 0:00:05.3]} 83... Rc1+ {[%clk
0:00:18.8]} 84. Kd5 {[%clk 0:00:05.1]} 84... g2 {[%clk 0:00:19.7]} 85. b8=Q
{[%clk 0:00:04.4]} 85... Rd1+ {[%clk 0:00:20.2]} 86. Ke5 {[%clk 0:00:03.8]}
86... g1=Q {[%clk 0:00:21.1]} 87. Qa7+ {[%clk 0:00:04.2]} 87... Kg2 {[%clk
0:00:21]} 88. Qa2+ {[%clk 0:00:04.2]} 88... Kh1 {[%clk 0:00:20.1]} 89. Kf4
{[%clk 0:00:01.8]} 89... Rd4+ {[%clk 0:00:16.8]} 90. Kf5 {[%clk 0:00:01.7]}
90... Qg4+ {[%clk 0:00:16.1]} 91. Ke5 {[%clk 0:00:02.3]} 91... Qf4+ {[%clk
0:00:15.8]} 92. Ke6 {[%clk 0:00:02.6]} 92... Re4+ {[%clk 0:00:15.5]} 93. Kd5
{[%clk 0:00:02.4]} 93... Qf7+ {[%clk 0:00:15.4]} 94. Kc5 {[%clk 0:00:01.9]}
94... Qxa2 {[%clk 0:00:16.3]} 0-1

[Event "Early-Titled-Tuesday-Blitz-April-02-2024"]
[Site "Chess.com"]
[Date "2024.04.02"]
[Round "6"]
[White "GMKrikor"]
[Black "KacperKacprzak"]
[Result "0-1"]
[WhiteElo "2893"]
[BlackElo "2719"]
[TimeControl "180+1"]
[EndTime "9:09:53 PDT"]
[Termination "KacperKacprzak won by checkmate"]

1. Nf3 {[%clk 0:03:00.9]} 1... Nf6 {[%clk 0:02:55.8]} 2. c4 {[%clk 0:03:00.2]}
2... e6 {[%clk 0:02:55.5]} 3. Nc3 {[%clk 0:02:58.4]} 3... d5 {[%clk 0:02:54.6]}
4. d4 {[%clk 0:02:58.7]} 4... dxc4 {[%clk 0:02:54.3]} 5. e4 {[%clk 0:02:55.7]}
5... Bb4 {[%clk 0:02:53.4]} 6. Bxc4 {[%clk 0:02:48]} 6... Nxe4 {[%clk
0:02:53.4]} 7. O-O {[%clk 0:02:47.9]} 7... Nf6 {[%clk 0:02:54]} 8. Bg5 {[%clk
0:02:36.8]} 8... O-O {[%clk 0:02:53.3]} 9. Re1 {[%clk 0:02:29.3]} 9... Be7
{[%clk 0:02:52.8]} 10. Rc1 {[%clk 0:02:28.6]} 10... Nc6 {[%clk 0:02:50.5]} 11.
a3 {[%clk 0:02:27.1]} 11... Bd7 {[%clk 0:02:49.2]} 12. Ba2 {[%clk 0:02:25.4]}
12... Nd5 {[%clk 0:02:43.2]} 13. Bd2 {[%clk 0:01:46.1]} 13... Bf6 {[%clk
0:02:38.4]} 14. Ne4 {[%clk 0:01:43.8]} 14... Nxd4 {[%clk 0:02:19.3]} 15. Nxd4
{[%clk 0:01:33.1]} 15... Bxd4 {[%clk 0:02:20.2]} 16. Bxd5 {[%clk 0:01:32.7]}
16... exd5 {[%clk 0:02:20.2]} 17. Bg5 {[%clk 0:01:33.3]} 17... f6 {[%clk
0:01:36.6]} 18. Qxd4 {[%clk 0:01:29.4]} 18... dxe4 {[%clk 0:01:35.9]} 19. Red1
{[%clk 0:00:20]} 19... Be6 {[%clk 0:00:59.2]} 20. Qxe4 {[%clk 0:00:13.4]} 20...
Qc8 {[%clk 0:00:59.8]} 21. Bf4 {[%clk 0:00:11.7]} 21... c6 {[%clk 0:00:59.2]}
22. Qb4 {[%clk 0:00:08.3]} 22... Re8 {[%clk 0:00:55.8]} 23. Bg3 {[%clk 0:00:08]}
23... Bf7 {[%clk 0:00:55.7]} 24. h3 {[%clk 0:00:06.7]} 24... b6 {[%clk
0:00:55.6]} 25. Qd6 {[%clk 0:00:05.7]} 25... c5 {[%clk 0:00:55.6]} 26. b4 {[%clk
0:00:06.4]} 26... c4 {[%clk 0:00:55.9]} 27. b5 {[%clk 0:00:07]} 27... Qf5 {[%clk
0:00:52.4]} 28. a4 {[%clk 0:00:06.2]} 28... Qe6 {[%clk 0:00:36.3]} 29. Qd4
{[%clk 0:00:04.1]} 29... h6 {[%clk 0:00:35.3]} 30. Kh2 {[%clk 0:00:04]} 30...
Qe7 {[%clk 0:00:34]} 31. Bd6 {[%clk 0:00:03]} 31... Qb7 {[%clk 0:00:33.5]} 32.
Bg3 {[%clk 0:00:02.8]} 32... a6 {[%clk 0:00:33.5]} 33. Rb1 {[%clk 0:00:01.9]}
33... axb5 {[%clk 0:00:33]} 34. Rxb5 {[%clk 0:00:02.8]} 34... Rxa4 {[%clk
0:00:30.7]} 35. Rxb6 {[%clk 0:00:02.9]} 35... Qe7 {[%clk 0:00:30.1]} 36. Rd6
{[%clk 0:00:03.2]} 36... Ra7 {[%clk 0:00:29.1]} 37. Qb6 {[%clk 0:00:02.2]} 37...
Rb7 {[%clk 0:00:28.8]} 38. Qc6 {[%clk 0:00:02.4]} 38... Rc7 {[%clk 0:00:27.7]}
39. Qb6 {[%clk 0:00:02.7]} 39... Rcc8 {[%clk 0:00:24.3]} 40. Rd7 {[%clk
0:00:02.8]} 40... Qe6 {[%clk 0:00:24.9]} 41. Qa7 {[%clk 0:00:03]} 41... c3
{[%clk 0:00:24.6]} 42. Rc1 {[%clk 0:00:02]} 42... c2 {[%clk 0:00:19.6]} 43. Rc7
{[%clk 0:00:02.4]} 43... Rxc7 {[%clk 0:00:15.8]} 44. Qxc7 {[%clk 0:00:03.3]}
44... Rc8 {[%clk 0:00:16.1]} 45. Qf4 {[%clk 0:00:02.1]} 45... Bg6 {[%clk
0:00:15]} 46. Qd2 {[%clk 0:00:02.1]} 46... Kh7 {[%clk 0:00:15]} 47. Bf4 {[%clk
0:00:02.6]} 47... Qf5 {[%clk 0:00:14.5]} 48. Be3 {[%clk 0:00:02.6]} 48... Qe4
{[%clk 0:00:14]} 49. Kg1 {[%clk 0:00:02.8]} 49... Qc4 {[%clk 0:00:14.1]} 50. Kh2
{[%clk 0:00:02.8]} 50... Qc6 {[%clk 0:00:14.1]} 51. Kg1 {[%clk 0:00:02.8]} 51...
Re8 {[%clk 0:00:14.7]} 52. Kh2 {[%clk 0:00:03.2]} 52... h5 {[%clk 0:00:15.3]}
53. Kg1 {[%clk 0:00:03.7]} 53... Qc7 {[%clk 0:00:15.9]} 54. Qd4 {[%clk
0:00:03.8]} 54... Qc6 {[%clk 0:00:15.8]} 55. Qf4 {[%clk 0:00:04]} 55... Qe4
{[%clk 0:00:14.8]} 56. Qxe4 {[%clk 0:00:03.9]} 56... Bxe4 {[%clk 0:00:15.7]} 57.
Kh2 {[%clk 0:00:04.8]} 57... Bg6 {[%clk 0:00:15.6]} 58. Kg3 {[%clk 0:00:05.4]}
58... Rb8 {[%clk 0:00:15.6]} 59. h4 {[%clk 0:00:05.9]} 59... Rb1 {[%clk
0:00:16.1]} 60. f3 {[%clk 0:00:06.2]} 60... Bf5 {[%clk 0:00:16.4]} 61. Kf2
{[%clk 0:00:06.7]} 61... Kg6 {[%clk 0:00:17.1]} 62. Bd2 {[%clk 0:00:07]} 62...
Kf7 {[%clk 0:00:17.4]} 63. Ke3 {[%clk 0:00:07.6]} 63... Rb3+ {[%clk 0:00:17.7]}
64. Kf2 {[%clk 0:00:07.5]} 64... Kg6 {[%clk 0:00:17.4]} 65. Be3 {[%clk
0:00:06.9]} 65... Ra3 {[%clk 0:00:17.8]} 66. Bd2 {[%clk 0:00:07.1]} 66... Ra4
{[%clk 0:00:18.3]} 67. Be3 {[%clk 0:00:07.4]} 67... Rxh4 {[%clk 0:00:17.6]} 68.
Ra1 {[%clk 0:00:04.5]} 68... Rb4 {[%clk 0:00:17.4]} 69. Rc1 {[%clk 0:00:04.3]}
69... Rb1 {[%clk 0:00:17.3]} 70. Kg3 {[%clk 0:00:04.8]} 70... Kf7 {[%clk
0:00:16.6]} 71. Kh4 {[%clk 0:00:05.3]} 71... Kg6 {[%clk 0:00:15.6]} 72. g4
{[%clk 0:00:04.5]} 72... hxg4 {[%clk 0:00:16.5]} 73. fxg4 {[%clk 0:00:05.4]}
73... Bd3 {[%clk 0:00:16.6]} 74. Kg3 {[%clk 0:00:05.3]} 74... Rb4 {[%clk
0:00:16.3]} 75. Bf4 {[%clk 0:00:04.1]} 75... Kf7 {[%clk 0:00:16.1]} 76. Bd2
{[%clk 0:00:03.9]} 76... g5 {[%clk 0:00:16.1]} 77. Kf3 {[%clk 0:00:03.5]} 77...
Kg6 {[%clk 0:00:16.4]} 78. Ke3 {[%clk 0:00:03.3]} 78... Rb3 {[%clk 0:00:16.4]}
79. Kd4 {[%clk 0:00:03]} 79... Be2 {[%clk 0:00:15.7]} 80. Rxc2 {[%clk
0:00:02.2]} 80... Bxg4 {[%clk 0:00:15.5]} 81. Bc3 {[%clk 0:00:02.8]} 81... Rb8
{[%clk 0:00:15.1]} 82. Rf2 {[%clk 0:00:03]} 82... Rd8+ {[%clk 0:00:15]} 83. Ke3
{[%clk 0:00:03.5]} 83... f5 {[%clk 0:00:15.5]} 84. Bb4 {[%clk 0:00:01.7]} 84...
f4+ {[%clk 0:00:15.9]} 85. Ke4 {[%clk 0:00:02.4]} 85... Re8+ {[%clk 0:00:16.8]}
86. Kd4 {[%clk 0:00:02.6]} 86... Kf5 {[%clk 0:00:17.3]} 87. Bd2 {[%clk
0:00:02.8]} 87... Be2 {[%clk 0:00:17]} 88. Kc3 {[%clk 0:00:02.6]} 88... Re4
{[%clk 0:00:16.1]} 89. Rh2 {[%clk 0:00:02]} 89... g4 {[%clk 0:00:15]} 90. Rh8
{[%clk 0:00:02.2]} 90... g3 {[%clk 0:00:15]} 91. Rg8 {[%clk 0:00:02.4]} 91...
Bf3 {[%clk 0:00:12.2]} 92. Kc2 {[%clk 0:00:02]} 92... Bg4 {[%clk 0:00:10.8]} 93.
Rf8+ {[%clk 0:00:01.7]} 93... Ke5 {[%clk 0:00:11.3]} 94. Re8+ {[%clk 0:00:02]}
94... Be6 {[%clk 0:00:11.9]} 95. Rg8 {[%clk 0:00:02]} 95... Bd5 {[%clk
0:00:11.1]} 96. Re8+ {[%clk 0:00:01.7]} 96... Kf5 {[%clk 0:00:11.4]} 97. Rd8
{[%clk 0:00:02.5]} 97... Rc4+ {[%clk 0:00:09.7]} 98. Kd3 {[%clk 0:00:02.5]}
98... Be6 {[%clk 0:00:08.1]} 99. Rf8+ {[%clk 0:00:02.8]} 99... Ke5 {[%clk
0:00:08.3]} 100. Be1 {[%clk 0:00:01.9]} 100... Ra4 {[%clk 0:00:08]} 101. Ke2
{[%clk 0:00:02.2]} 101... Ke4 {[%clk 0:00:08]} 102. Re8 {[%clk 0:00:02]} 102...
Ra2+ {[%clk 0:00:08.3]} 103. Kf1 {[%clk 0:00:02.5]} 103... Ra6 {[%clk
0:00:07.8]} 104. Bd2 {[%clk 0:00:02.5]} 104... Kf3 {[%clk 0:00:07.4]} 105. Be1
{[%clk 0:00:02.6]} 105... Bc4+ {[%clk 0:00:05.4]} 106. Kg1 {[%clk 0:00:03]}
106... Re6 {[%clk 0:00:06]} 107. Rxe6 {[%clk 0:00:02.8]} 107... Bxe6 {[%clk
0:00:06.9]} 108. Bb4 {[%clk 0:00:01.9]} 108... Kg4 {[%clk 0:00:05.8]} 109. Be1
{[%clk 0:00:02.2]} 109... f3 {[%clk 0:00:05.9]} 110. Kf1 {[%clk 0:00:02.5]}
110... Bc4+ {[%clk 0:00:05.8]} 111. Kg1 {[%clk 0:00:03]} 111... Kf4 {[%clk
0:00:06.7]} 112. Kh1 {[%clk 0:00:03.4]} 112... f2 {[%clk 0:00:06]} 113. Kg2
{[%clk 0:00:03.6]} 113... f1=Q# {[%clk 0:00:05.4]} 0-1

[Event "Early-Titled-Tuesday-Blitz-April-02-2024"]
[Site "Chess.com"]
[Date "2024.04.02"]
[Round "7"]
[White "UK_23"]
[Black "Sasha_Solovev_777"]
[Result "1-0"]
[WhiteElo "2388"]
[BlackElo "2235"]
[TimeControl "180+1"]
[EndTime "9:12:04 PDT"]
[Termination "UK_23 won by resignation"]

1. e4 {[%clk 0:02:58.6]} 1... c5 {[%clk 0:02:58.9]} 2. Nf3 {[%clk 0:02:58.6]}
2... d6 {[%clk 0:02:59]} 3. d4 {[%clk 0:02:55.5]} 3... cxd4 {[%clk 0:02:59]} 4.
Qxd4 {[%clk 0:02:56.4]} 4... Nc6 {[%clk 0:02:56.9]} 5. Qe3 {[%clk 0:02:55.7]}
5... Nf6 {[%clk 0:02:47.7]} 6. Be2 {[%clk 0:02:52.5]} 6... g6 {[%clk 0:02:46.7]}
7. O-O {[%clk 0:02:51.8]} 7... Bg7 {[%clk 0:02:46.7]} 8. h3 {[%clk 0:02:52.2]}
8... O-O {[%clk 0:02:46.5]} 9. Rd1 {[%clk 0:02:52.1]} 9... Qb6 {[%clk
0:02:44.1]} 10. Qxb6 {[%clk 0:02:49.6]} 10... axb6 {[%clk 0:02:45]} 11. Nc3
{[%clk 0:02:50.1]} 11... Nb4 {[%clk 0:02:33.5]} 12. Ne1 {[%clk 0:02:44.4]} 12...
Bd7 {[%clk 0:02:25.8]} 13. Be3 {[%clk 0:02:43.8]} 13... Bb5 {[%clk 0:02:06.8]}
14. Bxb5 {[%clk 0:02:41]} 1-0

[Event "Early-Titled-Tuesday-Blitz-April-02-2024"]
[Site "Chess.com"]
[Date "2024.04.02"]
[Round "7"]
[White "LuisFSiles"]
[Black "Ordekalog"]
[Result "0-1"]
[WhiteElo "2353"]
[BlackElo "2606"]
[TimeControl "180+1"]
[EndTime "9:12:18 PDT"]
[Termination "Ordekalog won by resignation"]

1. e4 {[%clk 0:03:00.9]} 1... d5 {[%clk 0:02:59.5]} 2. exd5 {[%clk 0:02:59.3]}
2... Nf6 {[%clk 0:02:59.5]} 3. Bb5+ {[%clk 0:02:58.4]} 3... Bd7 {[%clk
0:02:59.1]} 4. Be2 {[%clk 0:02:58]} 4... Nxd5 {[%clk 0:02:58.5]} 5. d4 {[%clk
0:02:58.2]} 5... e6 {[%clk 0:02:45.7]} 6. Nf3 {[%clk 0:02:54.6]} 6... c5 {[%clk
0:02:43.9]} 7. c3 {[%clk 0:02:49.8]} 7... Nc6 {[%clk 0:02:42.1]} 8. O-O {[%clk
0:02:49.6]} 8... cxd4 {[%clk 0:02:39.4]} 9. cxd4 {[%clk 0:02:49.6]} 9... Be7
{[%clk 0:02:36.5]} 10. Nc3 {[%clk 0:02:47.4]} 10... O-O {[%clk 0:02:33.8]} 11.
Bd3 {[%clk 0:02:43.8]} 11... Ncb4 {[%clk 0:02:25.7]} 12. Bb1 {[%clk 0:02:42.9]}
12... Bc6 {[%clk 0:02:25.4]} 13. Ne5 {[%clk 0:02:40.8]} 13... Nf6 {[%clk
0:02:15.6]} 14. Qd3 {[%clk 0:02:37.2]} 14... Nxd3 {[%clk 0:02:13.4]} 0-1